bitfinex-derivatives/quotes_BTCF0:USTF0_20241128
["timestamp","ask_amount","ask_price","bid_price","bid_amount"]
[1732797815172,0.3648,95391.0,95388.0,0.00982971]
[1732797815366,0.3648,95391.0,95390.0,0.052398]
[1732797815674,0.3628,95391.0,95390.0,0.06222771]
[1732797815868,0.3688,95391.0,95390.0,0.06322771]
[1732797816069,0.3668,95391.0,95390.0,0.06322771]
[1732797816272,0.3668,95391.0,95390.0,0.06222771]
[1732797816577,0.3658,95391.0,95390.0,0.06222771]
[1732797817088,0.3678,95391.0,95390.0,0.06222771]
[1732797817277,0.007,95391.0,95390.0,0.052398]
[1732797817471,0.007,95391.0,95390.0,0.0622275]
[1732797817671,0.007,95391.0,95390.0,0.052398]
[1732797818183,0.008,95391.0,95390.0,0.06322757]
[1732797818878,0.008,95391.0,95390.0,0.07732405]
[1732797819673,0.008,95391.0,95390.0,0.06749448]
[1732797820076,0.008,95391.0,95390.0,0.07732406]
[1732797821686,0.008,95391.0,95390.0,0.06749448]
[1732797824385,0.008,95391.0,95390.0,0.25573693]
[1732797824684,0.008,95391.0,95390.0,0.06749448]
[1732797833576,0.008,95391.0,95390.0,0.07732359]
[1732797833783,0.008,95391.0,95390.0,0.06749448]
[1732797836194,0.421197,95391.0,95390.0,0.18955913]
[1732797836392,0.57747172,95391.0,95390.0,0.053398]
[1732797836588,0.3688,95391.0,95390.0,0.053398]
[1732797836889,0.008,95391.0,95390.0,0.053398]
[1732797838296,0.008,95391.0,95390.0,0.06322726]
[1732797839290,0.09393651,95392.0,95390.0,0.41375181]
[1732797839587,0.09393651,95394.0,95393.0,0.052396]
[1732797839789,0.09393651,95396.0,95395.0,0.052395]
[1732797840089,0.0616,95403.0,95402.0,0.052391]
[1732797840291,0.0616,95403.0,95402.0,0.2507709]
[1732797840493,0.0616,95403.0,95402.0,0.06222026]
[1732797842492,0.0636,95403.0,95402.0,0.052391]
[1732797842890,0.0686,95403.0,95402.0,0.052391]
[1732797843285,0.0666,95403.0,95402.0,0.06221891]
[1732797843482,0.0676,95403.0,95402.0,0.25064654]
[1732797843681,0.0676,95403.0,95402.0,0.24081863]
[1732797845200,0.0676,95403.0,95402.0,0.25475619]
[1732797845590,0.0676,95403.0,95402.0,0.06632856]
[1732797845790,0.0676,95403.0,95402.0,0.07615647]
[1732797847698,0.22408888,95403.0,95402.0,0.07615647]
[1732797847995,0.22408888,95403.0,95402.0,0.06632856]
[1732797848398,0.22408888,95403.0,95402.0,0.052391]
[1732797848614,0.052393,95399.0,95397.0,0.06667005]
[1732797848806,0.052393,95399.0,95398.0,0.052393]
[1732797850096,0.054393,95399.0,95398.0,0.052393]
[1732797851400,0.055393,95399.0,95398.0,0.052393]
[1732797851822,0.10635008,95399.0,95398.0,0.052393]
[1732797852101,0.055393,95399.0,95398.0,0.052393]
[1732797852807,0.11034988,95399.0,95398.0,0.053393]
[1732797852997,0.11234988,95399.0,95398.0,0.053393]
[1732797854098,0.24897327,95399.0,95398.0,0.053393]
[1732797854401,0.29993015,95399.0,95398.0,0.053393]
[1732797854801,0.061393,95399.0,95398.0,0.053393]
[1732797855992,0.009,95399.0,95398.0,0.053393]
[1732797856505,0.009,95399.0,95398.0,0.0632219]
[1732797858206,0.061393,95399.0,95398.0,0.0632219]
[1732797858601,0.061393,95399.0,95398.0,0.06322191]
[1732797859008,0.061393,95399.0,95398.0,0.053393]
[1732797860096,0.061393,95399.0,95398.0,0.06322179]
[1732797860811,0.061393,95399.0,95398.0,0.053393]
[1732797860998,0.061393,95399.0,95398.0,0.06322176]
[1732797861503,0.061393,95399.0,95398.0,0.053393]
[1732797861905,0.061393,95399.0,95398.0,0.06322187]
[1732797862301,0.061393,95399.0,95398.0,0.053393]
[1732797862710,0.11235081,95399.0,95398.0,0.053393]
[1732797863903,0.11235081,95399.0,95398.0,0.0632219]
[1732797866521,0.11235081,95399.0,95398.0,0.053393]
[1732797866717,0.24897327,95399.0,95398.0,0.0632219]
[1732797866901,0.11235081,95399.0,95398.0,0.0108289]
[1732797867106,0.47315081,95399.0,95398.0,0.001]
[1732797868309,0.47315534,95399.0,95398.0,0.001]
[1732797869615,0.47315534,95399.0,95398.0,0.053393]
[1732797869815,0.422193,95399.0,95398.0,0.053393]
[1732797870011,0.422193,95399.0,95398.0,0.001]
[1732797871019,0.576593,95399.0,95398.0,0.001]
[1732797874637,0.59045504,95399.0,95398.0,0.001]
[1732797875217,0.64141446,95399.0,95398.0,0.001]
[1732797877624,0.64141587,95399.0,95398.0,0.001]
[1732797877921,0.82933228,95399.0,95398.0,0.001]
[1732797878120,0.64141587,95399.0,95398.0,0.001]
[1732797878340,0.31448,95398.0,95377.0,0.01]
[1732797878531,0.413204,95378.0,95377.0,0.01]
[1732797878731,0.61848483,95378.0,95377.0,0.01]
[1732797878934,0.93300483,95378.0,95377.0,0.01]
[1732797879531,0.93300483,95378.0,95377.0,0.013]
[1732797879839,0.61848483,95378.0,95377.0,0.013]
[1732797880337,0.61848483,95378.0,95377.0,0.017]
[1732797880727,0.46416483,95378.0,95377.0,0.017]
[1732797880923,0.3608,95378.0,95377.0,0.069405]
[1732797881328,0.48597378,95378.0,95377.0,0.07923611]
[1732797882033,0.3608,95378.0,95377.0,0.07923611]
[1732797882433,0.3608,95378.0,95377.0,0.07523611]
[1732797882634,0.3608,95378.0,95377.0,0.07623611]
[1732797882940,0.3608,95378.0,95377.0,0.07523611]
[1732797884943,0.3608,95378.0,95377.0,0.08924976]
[1732797885631,0.413204,95378.0,95377.0,0.03684476]
[1732797886240,0.413204,95378.0,95377.0,0.02701365]
[1732797887443,0.53837778,95378.0,95377.0,0.02701365]
[1732797887946,0.53837778,95378.0,95377.0,0.07941865]
[1732797888640,0.3608,95378.0,95377.0,0.07941865]
[1732797888940,0.45462437,95378.0,95377.0,0.07924968]
[1732797889548,0.3608,95378.0,95377.0,0.06941865]
[1732797891636,0.413204,95378.0,95377.0,0.06941865]
[1732797894038,0.413204,95378.0,95377.0,0.003]
[1732797894233,0.50704601,95378.0,95377.0,0.01283094]
[1732797894439,0.413204,95378.0,95377.0,0.01283094]
[1732797894648,0.53837778,95378.0,95377.0,0.003]
[1732797894941,0.413204,95378.0,95377.0,0.003]
[1732797896042,0.56965552,95378.0,95377.0,0.003]
[1732797896341,0.46417732,95378.0,95377.0,0.003]
[1732797900540,0.46417993,95378.0,95377.0,0.055405]
[1732797901045,0.413204,95378.0,95377.0,0.055405]
[1732797901746,0.413204,95378.0,95377.0,0.003]
[1732797902241,0.5696417,95378.0,95377.0,0.003]
[1732797902445,0.46417754,95378.0,95377.0,0.003]
[1732797903742,0.46417758,95378.0,95377.0,0.003]
[1732797910347,0.61845758,95378.0,95377.0,0.003]
[1732797911846,0.41177358,95378.0,95377.0,0.055405]
[1732797912150,0.3608,95378.0,95377.0,0.06523579]
[1732797912546,0.03496073,95379.0,95377.0,0.06523579]
[1732797912744,0.125257,95386.0,95383.0,0.052401]
[1732797912955,0.125257,95386.0,95384.0,0.16407079]
[1732797912956,0.12526957,95386.0,95384.0,0.16407079]
[1732797913155,0.12526957,95386.0,95385.0,0.06223079]
[1732797914649,0.17766957,95386.0,95385.0,0.06223079]
[1732797915042,0.20895593,95386.0,95385.0,0.06223079]
[1732797915645,0.0524,95386.0,95385.0,0.06223079]
[1732797916059,0.20895593,95386.0,95385.0,0.06223079]
[1732797916350,0.0554,95386.0,95385.0,0.00983079]
[1732797916761,0.003,95386.0,95384.0,0.052401]
[1732797917073,0.0524,95385.0,95384.0,0.052401]
[1732797917449,0.0524,95385.0,95384.0,0.00983016]
[1732797917450,0.10336663,95385.0,95384.0,0.00983016]
[1732797917647,0.13456663,95385.0,95384.0,0.00983016]
[1732797917846,0.13456663,95385.0,95379.0,0.052403]
[1732797918054,0.13456663,95385.0,95380.0,0.00983074]
[1732797918055,0.15644561,95382.0,95380.0,0.00983074]
[1732797918353,0.15644561,95382.0,95376.0,0.052405]
[1732797918354,0.052405,95377.0,95376.0,0.052405]
[1732797918545,0.052405,95377.0,95376.0,0.062236]
[1732797918952,0.3608,95379.0,95378.0,0.052404]
[1732797919251,0.3608,95379.0,95378.0,0.062235]
[1732797920557,0.3608,95379.0,95378.0,0.052404]
[1732797920753,0.3608,95379.0,95378.0,0.06223467]
[1732797921150,0.3608,95379.0,95378.0,0.06423467]
[1732797922549,0.3608,95379.0,95378.0,0.06523467]
[1732797922753,0.1251621,95383.0,95382.0,0.052402]
[1732797922964,0.1251621,95384.0,95383.0,0.052401]
[1732797923150,0.1251621,95385.0,95384.0,0.052401]
[1732797923347,0.1251621,95385.0,95384.0,0.09543123]
[1732797923552,0.15643542,95390.0,95387.0,0.052399]
[1732797923755,0.052398,95389.0,95387.0,0.052399]
[1732797924462,0.48603043,95388.0,95387.0,0.052399]
[1732797924961,0.48703043,95388.0,95387.0,0.052399]
[1732797926354,0.49103043,95388.0,95387.0,0.052399]
[1732797926556,0.3658,95388.0,95387.0,0.052399]
[1732797926855,0.3658,95388.0,95387.0,0.06616723]
[1732797929368,0.3658,95388.0,95387.0,0.0759973]
[1732797934255,0.005,95388.0,95387.0,0.0759973]
[1732797934460,0.005,95388.0,95387.0,0.42696723]
[1732797934663,0.005,95388.0,95387.0,0.59091622]
[1732797935168,0.3608,95400.0,95387.0,1.15683767]
[1732797935467,0.12527833,95402.0,95396.0,0.3608]
[1732797935666,0.12527833,95403.0,95402.0,0.052391]
[1732797935869,0.5,95404.0,95403.0,0.05239]
[1732797935870,0.62527833,95404.0,95403.0,0.05239]
[1732797936069,0.62527833,95404.0,95403.0,0.06221899]
[1732797936662,0.5,95404.0,95403.0,0.06221899]
[1732797937170,0.509,95404.0,95403.0,0.06321899]
[1732797937466,0.514,95404.0,95403.0,0.06421899]
[1732797937871,0.514,95404.0,95403.0,0.41075899]
[1732797939267,0.505,95404.0,95403.0,0.40975899]
[1732797939468,0.51,95404.0,95403.0,0.41075899]
[1732797939865,0.509,95404.0,95403.0,0.40975899]
[1732797940065,0.509,95404.0,95403.0,0.42360954]
[1732797942872,0.509,95404.0,95403.0,0.10916954]
[1732797944471,0.509,95404.0,95403.0,0.42360954]
[1732797944673,0.00012915,95411.0,95410.0,0.052387]
[1732797944867,0.00012915,95411.0,95410.0,0.57713599]
[1732797945065,0.00012915,95411.0,95410.0,0.89165565]
[1732797945274,0.12533884,95428.0,95417.0,0.052383]
[1732797945471,0.0311,95442.0,95429.0,0.052376]
[1732797945472,0.12533884,95432.0,95429.0,0.052376]
[1732797945669,0.12533884,95435.0,95434.0,0.052373]
[1732797945873,0.0307,95439.0,95435.0,0.052373]
[1732797945874,0.15603884,95439.0,95435.0,0.052373]
[1732797946185,0.36237221,95436.0,95435.0,0.052373]
[1732797946678,0.00157221,95436.0,95435.0,0.052373]
[1732797947565,0.00957221,95436.0,95435.0,0.053373]
[1732797947977,0.01657221,95436.0,95435.0,0.054373]
[1732797949177,0.37737221,95436.0,95435.0,0.054373]
[1732797950273,0.01657221,95436.0,95435.0,0.054373]
[1732797954067,0.00157221,95436.0,95435.0,0.052373]
[1732797954473,0.00957221,95436.0,95435.0,0.053373]
[1732797955874,0.00857221,95436.0,95435.0,0.053373]
[1732797956076,0.00857221,95436.0,95435.0,0.414173]
[1732797956878,0.00457221,95436.0,95435.0,0.414173]
[1732797957083,0.00757221,95436.0,95435.0,0.42399666]
[1732797958378,0.00757221,95436.0,95435.0,0.414173]
[1732797960577,0.006,95436.0,95435.0,0.414173]
[1732797962583,0.006,95436.0,95435.0,0.42399672]
[1732797965686,0.006,95436.0,95435.0,0.44495283]
[1732797968215,0.006,95436.0,95435.0,0.00982372]
[1732797968383,0.006,95436.0,95417.0,0.15396]
[1732797968591,0.052378,95425.0,95423.0,0.052379]
[1732797968785,0.052382,95420.0,95417.0,0.052383]
[1732797968976,0.052381,95420.0,95414.0,0.01385671]
[1732797969177,0.0316,95424.0,95418.0,0.052382]
[1732797969178,0.052382,95419.0,95418.0,0.052382]
[1732797969380,0.0316,95424.0,95411.0,0.3608]
[1732797969685,0.0316,95424.0,95410.0,7.966e-05]
[1732797969686,0.052386,95411.0,95410.0,7.966e-05]
[1732797970182,0.05239,95405.0,95397.0,0.0015722]
[1732797970387,0.3608,95404.0,95403.0,0.05239]
[1732797971187,0.3608,95404.0,95403.0,0.05252187]
[1732797972588,0.12505276,95410.0,95403.0,0.05352187]
[1732797972786,0.033,95411.0,95410.0,0.052387]
[1732797973481,0.033,95411.0,95403.0,0.00113187]
[1732797973786,0.033,95411.0,95397.0,0.0154198]
[1732797973787,0.052393,95398.0,95397.0,0.0015722]
[1732797973990,0.3608,95401.0,95378.0,0.3608]
[1732797974191,0.413198,95390.0,95387.0,0.052399]
[1732797974498,0.413198,95390.0,95378.0,0.3608]
[1732797974499,0.3608,95390.0,95378.0,0.3608]
[1732797974692,0.3608,95390.0,95379.0,0.00010072]
[1732797974999,0.3608,95390.0,95388.0,0.052399]
[1732797975000,0.413198,95390.0,95388.0,0.052399]
[1732797975291,0.052398,95389.0,95379.0,0.00010072]
[1732797975496,0.3608,95390.0,95389.0,0.052398]
[1732797976696,0.413198,95390.0,95389.0,0.052398]
[1732797976993,0.444498,95390.0,95389.0,0.054398]
[1732797977402,0.444498,95390.0,95389.0,0.056398]
[1732797977787,0.444498,95390.0,95389.0,0.004]
[1732797978194,0.70662,95390.0,95381.0,0.052402]
[1732797978413,0.413202,95382.0,95381.0,0.052402]
[1732797979002,0.052403,95380.0,95379.0,0.00010072]
[1732797980289,0.052403,95380.0,95379.0,0.00210072]
[1732797980695,0.052403,95380.0,95379.0,0.05450472]
[1732797981201,0.3608,95382.0,95381.0,0.052402]
[1732797981202,0.413202,95382.0,95381.0,0.052402]
[1732797981506,0.052403,95380.0,95379.0,0.00210072]
[1732797982398,0.052403,95380.0,95379.0,0.00010072]
[1732797983399,0.052403,95380.0,95379.0,0.00110072]
[1732797985417,0.052403,95380.0,95379.0,0.00210072]
[1732797986726,0.052403,95380.0,95379.0,0.05450472]
[1732797986928,0.052403,95380.0,95379.0,0.00210072]
[1732797989121,0.052405,95378.0,95353.0,0.3608]
[1732797989326,0.3608,95365.0,95353.0,0.01424257]
[1732797989524,0.3608,95365.0,95363.0,0.052412]
[1732797989917,0.3608,95365.0,95351.0,0.54738]
[1732797990109,0.3608,95365.0,95354.0,0.052417]
[1732797990309,0.3608,95355.0,95352.0,0.00011227]
[1732797990512,0.3608,95355.0,95353.0,0.009]
[1732797991315,0.06079155,95354.0,95353.0,0.009]
[1732797991919,0.06079155,95354.0,95353.0,0.017]
[1732797992415,0.09169155,95354.0,95353.0,0.017]
[1732797992604,0.09469155,95354.0,95353.0,0.009]
[1732797992916,0.09469155,95354.0,95352.0,0.00011227]
[1732797993505,0.00837355,95353.0,95352.0,0.00011227]
[1732797994319,0.00837355,95353.0,95352.0,0.00111227]
[1732797994809,0.00872887,95353.0,95352.0,0.00111227]
[1732797996044,0.00872887,95353.0,95340.0,0.00045]
[1732797996045,0.052419,95352.0,95340.0,0.00045]
[1732797996220,0.3608,95341.0,95340.0,0.00045]
[1732797996408,0.36952887,95341.0,95340.0,0.00045]
[1732797996610,0.42195287,95341.0,95340.0,0.00045]
[1732797997312,0.59313439,95341.0,95340.0,1.537e-05]
[1732797998415,0.052431,95329.0,95315.0,0.083239]
[1732797998717,0.3608,95327.0,95315.0,0.083239]
[1732797998915,0.01502152,95326.0,95315.0,0.083239]
[1732797999124,0.01502152,95325.0,95315.0,0.083239]
[1732797999321,0.02375039,95325.0,95322.0,0.01369849]
[1732797999618,0.02375039,95325.0,95324.0,0.0354]
[1732798000409,0.02375039,95325.0,95324.0,0.0434]
[1732798001120,0.02475039,95325.0,95324.0,0.0434]
[1732798001325,0.02499926,95325.0,95324.0,0.0434]
[1732798001825,0.43823226,95325.0,95324.0,0.013]
[1732798002319,0.052444,95306.0,95297.0,0.066]
[1732798002523,0.052445,95304.0,95297.0,0.066]
[1732798002725,0.052445,95304.0,95301.0,6.409e-05]
[1732798002726,0.00923048,95303.0,95301.0,6.409e-05]
[1732798002919,0.00923048,95302.0,95301.0,6.409e-05]
[1732798004226,0.01023048,95302.0,95301.0,0.00906409]
[1732798004613,0.001,95302.0,95301.0,0.00906409]
[1732798005021,0.00956608,95302.0,95301.0,0.00906409]
[1732798006016,0.06201208,95302.0,95301.0,0.00906409]
[1732798006221,0.06301208,95302.0,95301.0,0.01206409]
[1732798007924,0.06280673,95302.0,95301.0,0.01206409]
[1732798008528,0.07708453,95302.0,95301.0,0.01206409]
[1732798011116,0.07608453,95302.0,95301.0,0.00906409]
[1732798011322,0.052446,95302.0,95301.0,0.00206409]
[1732798011523,0.07690366,95302.0,95301.0,0.00406409]
[1732798012416,0.07690366,95302.0,95300.0,0.08045108]
[1732798012622,0.02445766,95301.0,95300.0,0.08045108]
[1732798013927,0.02445766,95301.0,95300.0,0.08345108]
[1732798014430,0.02445766,95301.0,95300.0,0.08545108]
[1732798014625,0.02360308,95301.0,95300.0,0.08545108]
[1732798015221,0.02360299,95301.0,95300.0,0.08345108]
[1732798015418,0.02360299,95301.0,95300.0,0.08545108]
[1732798016424,0.00907807,95301.0,95300.0,0.08545108]
[1732798016629,0.052446,95302.0,95300.0,0.08545108]
[1732798017335,0.0088186,95301.0,95300.0,0.08545108]
[1732798017540,0.0088186,95301.0,95300.0,0.08245108]
[1732798018126,0.0088186,95301.0,95300.0,0.08145108]
[1732798018540,0.0088186,95301.0,95300.0,0.08245108]
[1732798021534,0.0708186,95301.0,95300.0,0.08245108]
[1732798021741,0.07039774,95301.0,95300.0,0.08245108]
[1732798022831,0.12284374,95301.0,95300.0,0.08245108]
[1732798023434,0.114446,95301.0,95300.0,0.08245108]
[1732798024140,0.23922882,95301.0,95300.0,0.08245108]
[1732798024343,0.3608,95303.0,95302.0,0.052446]
[1732798025336,0.12480827,95311.0,95310.0,0.052442]
[1732798025737,9.924e-05,95312.0,95311.0,0.052441]
[1732798026039,9.924e-05,95312.0,95304.0,0.18736612]
[1732798026337,9.924e-05,95312.0,95302.0,0.3618]
[1732798026539,0.052444,95306.0,95304.0,0.052445]
[1732798026727,0.052445,95304.0,95302.0,0.01439089]
[1732798026927,0.413242,95309.0,95302.0,0.01439089]
[1732798027139,0.413242,95309.0,95305.0,0.052444]
[1732798027354,0.3608,95309.0,95308.0,0.052443]
[1732798027542,0.052444,95307.0,95302.0,0.06683689]
[1732798027729,0.052444,95306.0,95302.0,0.01339089]
[1732798028038,0.4857483,95309.0,95306.0,0.052443]
[1732798028239,0.4857483,95309.0,95301.0,0.0306]
[1732798028240,0.1249483,95309.0,95301.0,0.0306]
[1732798028438,0.001,95311.0,95309.0,0.052442]
[1732798028644,9.924e-05,95312.0,95310.0,0.052442]
[1732798030236,0.15530165,95311.0,95310.0,0.052442]
[1732798030740,0.15530165,95311.0,95301.0,0.04472688]
[1732798030741,0.3608,95311.0,95303.0,0.18736612]
[1732798030949,0.54716198,95311.0,95310.0,0.001]
[1732798031242,0.41180862,95311.0,95310.0,0.001]
[1732798031630,0.052445,95304.0,95300.0,0.13289808]
[1732798031834,0.51707123,95303.0,95301.0,0.00983883]
[1732798032042,0.3608,95303.0,95301.0,0.052446]
[1732798032240,0.3608,95303.0,95302.0,0.00983901]
[1732798032548,0.3608,95303.0,95301.0,0.052446]
[1732798032549,0.3148,95302.0,95296.0,0.18736612]
[1732798032736,0.3608,95297.0,95280.0,0.00156]
[1732798032935,0.3608,95281.0,95280.0,0.00156]
[1732798033242,0.3608,95281.0,95270.0,0.25147886]
[1732798033447,0.15610581,95273.0,95261.0,0.0331]
[1732798033740,0.12489009,95274.0,95269.0,0.3608]
[1732798033937,0.09367552,95273.0,95270.0,0.34498]
[1732798034137,0.09367552,95278.0,95276.0,0.05246]
[1732798034344,0.09367552,95279.0,95278.0,0.052459]
[1732798034641,0.18747118,95289.0,95277.0,0.3608]
[1732798034642,0.09367552,95285.0,95283.0,0.052456]
[1732798034836,0.18747118,95289.0,95287.0,0.052454]
[1732798035748,0.2811467,95289.0,95287.0,0.052454]
[1732798036047,0.18747118,95289.0,95287.0,0.052454]
[1732798036544,0.18747118,95289.0,95288.0,0.0312]
[1732798036839,0.00157456,95300.0,95288.0,0.0312]
[1732798036840,0.00157456,95300.0,95299.0,0.052448]
[1732798037046,0.09367552,95304.0,95303.0,0.052445]
[1732798037350,0.09367552,95308.0,95299.0,0.3608]
[1732798037541,9.924e-05,95312.0,95299.0,0.3608]
[1732798037747,9.924e-05,95312.0,95311.0,0.052441]
[1732798038048,9.924e-05,95312.0,95300.0,0.052447]
[1732798038049,0.052441,95311.0,95307.0,0.052443]
[1732798038251,9.924e-05,95312.0,95307.0,0.052443]
[1732798038442,0.052442,95309.0,95307.0,0.052443]
[1732798038635,0.3608,95308.0,95303.0,0.001]
[1732798038835,0.052445,95304.0,95303.0,0.001]
[1732798039046,0.052445,95304.0,95299.0,0.25116361]
[1732798039047,0.052451,95293.0,95292.0,0.25116361]
[1732798039245,0.052452,95291.0,95290.0,0.25116361]
[1732798039637,0.052455,95286.0,95285.0,0.01530617]
[1732798040337,0.3608,95288.0,95281.0,0.052457]
[1732798040542,0.3608,95288.0,95279.0,0.052459]
[1732798040543,0.0936509,95286.0,95279.0,0.052459]
[1732798040742,0.1461059,95286.0,95281.0,0.052457]
[1732798040946,0.0936509,95285.0,95281.0,0.052457]
[1732798041342,0.052458,95281.0,95276.0,0.05246]
[1732798041543,0.052458,95280.0,95276.0,0.05246]
[1732798041750,0.052458,95280.0,95279.0,0.002]
[1732798042050,0.1461089,95280.0,95279.0,0.002]
[1732798042353,0.3608,95280.0,95279.0,0.002]
[1732798042543,0.3608,95280.0,95279.0,0.052459]
[1732798042748,0.3608,95280.0,95276.0,0.007]
[1732798042943,0.052459,95279.0,95276.0,0.007]
[1732798043256,0.052459,95279.0,95277.0,0.05246]
[1732798043858,0.36144,95280.0,95276.0,0.007]
[1732798044042,0.3608,95280.0,95278.0,0.052459]
[1732798044245,0.3608,95280.0,95279.0,0.002]
[1732798044743,0.3608,95280.0,95279.0,0.054459]
[1732798045145,0.3608,95280.0,95279.0,0.052459]
[1732798045351,0.3608,95280.0,95279.0,0.06529969]
[1732798046346,0.413258,95280.0,95279.0,0.01284069]
[1732798046545,0.413258,95280.0,95279.0,0.003]
[1732798046860,0.728138,95280.0,95279.0,0.003]
[1732798047349,0.86513083,95280.0,95279.0,0.002]
[1732798047551,0.86513083,95280.0,95263.0,0.052467]
[1732798047852,0.052468,95261.0,95260.0,0.01336515]
[1732798048058,0.3608,95270.0,95248.0,0.3608]
[1732798048254,0.052467,95264.0,95261.0,0.052468]
[1732798048458,0.052469,95260.0,95255.0,0.01326999]
[1732798048646,0.052469,95260.0,95258.0,0.05247]
[1732798048953,0.052469,95260.0,95259.0,0.05404454]
[1732798049358,0.052469,95260.0,95259.0,0.00157454]
[1732798050752,0.053469,95260.0,95259.0,0.00457454]
[1732798050952,0.053469,95260.0,95259.0,0.003]
[1732798051254,0.054469,95260.0,95259.0,0.003]
[1732798051459,0.002,95260.0,95259.0,0.05547]
[1732798051752,0.001,95260.0,95259.0,0.05447]
[1732798051956,0.45489767,95262.0,95261.0,0.052468]
[1732798052156,0.45489767,95262.0,95259.0,0.002]
[1732798052157,0.09353766,95264.0,95259.0,0.002]
[1732798052355,0.3608,95272.0,95260.0,0.00984215]
[1732798052547,0.3608,95272.0,95271.0,0.052463]
[1732798052950,0.052464,95269.0,95266.0,0.052466]
[1732798053247,0.3608,95272.0,95259.0,0.002]
[1732798053449,0.052465,95267.0,95264.0,0.052467]
[1732798053955,0.052465,95267.0,95266.0,0.052466]
[1732798054551,0.413263,95272.0,95261.0,0.002]
[1732798054751,0.413263,95272.0,95269.0,0.052464]
[1732798055045,0.413263,95272.0,95261.0,0.002]
[1732798055046,0.3608,95272.0,95271.0,0.052463]
[1732798056648,0.3628,95272.0,95271.0,0.052463]
[1732798056853,0.3628,95272.0,95271.0,0.06557781]
[1732798058757,0.3638,95272.0,95271.0,0.06557781]
[1732798060752,0.3638,95272.0,95271.0,0.052463]
[1732798062053,0.3638,95272.0,95271.0,0.06230452]
[1732798062451,0.3638,95272.0,95271.0,0.052463]
[1732798063759,0.3638,95272.0,95269.0,0.01312095]
[1732798063960,0.3638,95272.0,95257.0,0.1758]
[1732798064165,0.3608,95263.0,95262.0,0.052468]
[1732798066159,0.3608,95263.0,95262.0,0.056468]
[1732798066557,0.3608,95263.0,95262.0,0.06631042]
[1732798066765,0.3608,95263.0,95262.0,0.056468]
[1732798068868,0.45448099,95263.0,95262.0,0.06631045]
[1732798069465,0.3608,95263.0,95262.0,0.06631045]
[1732798071568,0.3608,95263.0,95262.0,0.056468]
[1732798072671,0.3608,95263.0,95262.0,0.06631061]
[1732798072868,0.4545262,95263.0,95262.0,0.06631061]
[1732798073166,0.3608,95263.0,95262.0,0.06631061]
[1732798074975,0.413267,95263.0,95262.0,0.01384261]
[1732798075273,0.88415017,95263.0,95262.0,0.01384261]
[1732798075463,0.88415017,95263.0,95254.0,0.052472]
[1732798075464,0.77922059,95263.0,95248.0,0.3608]
[1732798075774,0.09373326,95252.0,95251.0,0.052474]
[1732798075965,0.09373326,95252.0,95251.0,0.06231704]
[1732798076565,0.052473,95253.0,95252.0,0.052473]
[1732798076766,0.052473,95253.0,95252.0,0.06231604]
[1732798078574,0.054473,95253.0,95252.0,0.06331604]
[1732798078973,0.054473,95253.0,95252.0,0.01084304]
[1732798079267,0.054473,95253.0,95252.0,0.06331604]
[1732798079470,0.054473,95253.0,95252.0,0.01084304]
[1732798079673,0.14816846,95253.0,95252.0,0.01084304]
[1732798080377,0.14816846,95253.0,95252.0,0.06331604]
[1732798080378,0.09569546,95253.0,95252.0,0.06331604]
[1732798080873,0.002,95253.0,95252.0,0.06331604]
[1732798081371,0.002,95253.0,95252.0,0.053473]
[1732798081569,0.054473,95253.0,95252.0,0.053473]
[1732798081769,0.002,95253.0,95252.0,0.053473]
[1732798082386,0.002,95253.0,95252.0,0.0633165]
[1732798082975,0.002,95253.0,95252.0,0.053473]
[1732798083278,0.09368808,95267.0,95266.0,0.052466]
[1732798083473,0.09370286,95269.0,95266.0,0.00984309]
[1732798083671,0.09370286,95268.0,95267.0,0.052465]
[1732798083980,0.00157527,95272.0,95271.0,0.052463]
[1732798084177,0.00157527,95272.0,95271.0,0.06230586]
[1732798084478,0.09370286,95279.0,95276.0,0.05246]
[1732798084775,0.0305,95290.0,95283.0,0.052456]
[1732798084776,0.09370286,95284.0,95283.0,0.052456]
[1732798084971,0.1867221,95290.0,95283.0,0.00984286]
[1732798085169,0.0305,95290.0,95284.0,0.00984286]
[1732798085369,0.0305,95290.0,95285.0,0.00984286]
[1732798085370,0.052455,95286.0,95285.0,0.00984286]
[1732798085970,0.052455,95286.0,95283.0,0.052456]
[1732798086280,0.052455,95286.0,95284.0,0.00984061]
[1732798087077,0.0355,95290.0,95285.0,0.00984063]
[1732798087376,0.0355,95290.0,95284.0,0.00984061]
[1732798087377,0.007,95290.0,95288.0,0.052454]
[1732798087890,0.002,95290.0,95288.0,0.052454]
[1732798088081,0.3608,95293.0,95284.0,0.00984061]
[1732798088267,0.3608,95293.0,95291.0,0.052452]
[1732798089482,0.3608,95293.0,95284.0,0.02293355]
[1732798089483,0.052453,95289.0,95285.0,0.052455]
[1732798089775,0.3608,95293.0,95284.0,0.00984061]
[1732798089776,0.052454,95288.0,95284.0,0.00984061]
[1732798089988,0.052454,95287.0,95285.0,0.00984057]
[1732798090180,0.052454,95287.0,95284.0,0.00984061]
[1732798090380,0.09360192,95285.0,95284.0,0.00984061]
[1732798090580,0.052454,95287.0,95284.0,0.00984061]
[1732798090581,0.052454,95287.0,95284.0,0.01968123]
[1732798090771,0.003,95290.0,95284.0,0.00984061]
[1732798090975,0.052452,95292.0,95284.0,0.00984061]
[1732798091278,0.052452,95292.0,95289.0,0.052453]
[1732798091478,0.3698,95293.0,95291.0,0.052452]
[1732798092182,0.005,95292.0,95291.0,0.052452]
[1732798092781,0.3678,95293.0,95291.0,0.052452]
[1732798093083,0.3678,95293.0,95270.0,0.30598166]
[1732798093288,0.09356331,95286.0,95283.0,0.052456]
[1732798093484,0.14601831,95287.0,95284.0,0.00984045]
[1732798093785,0.14601831,95287.0,95283.0,0.052456]
[1732798093786,0.14601831,95287.0,95285.0,0.00984045]
[1732798093979,0.09356331,95286.0,95284.0,0.052455]
[1732798094174,0.09356331,95286.0,95285.0,0.00984043]
[1732798094485,0.14601831,95287.0,95285.0,0.00984043]